bitfinex/quotes_ETHUSD_20241104
["timestamp","ask_amount","ask_price","bid_price","bid_amount"]
[1730757570000,0.2658,2374.7,2374.3,4.21173]
[1730757570219,0.3239425,2375.0,2374.3,4.21173]
[1730757570418,0.3239425,2375.0,2373.8,4.21261]
[1730757570419,0.3239425,2375.0,2373.8,4.21265]
[1730757570624,0.3239425,2375.0,2373.9,4.21238]
[1730757570625,4.21153,2374.5,2373.9,4.21238]
[1730757570818,0.2658,2374.4,2373.9,4.21238]
[1730757571096,4.47753,2374.4,2373.7,4.21282]
[1730757571296,4.21195,2374.2,2373.7,4.21282]
[1730757571493,4.21212,2374.1,2373.6,4.21288]
[1730757571734,4.21212,2374.1,2373.4,9.96065034]
[1730757571735,4.21212,2374.1,2373.5,4.21318]
[1730757571946,4.47747,2374.4,2373.7,4.21282]
[1730757572241,4.2126,2373.9,2373.3,4.21352]
[1730757572535,4.4784,2373.9,2373.2,4.21361]
[1730757572743,4.21318,2373.5,2373.0,4.21396]
[1730757572926,4.21318,2373.5,2372.9,4.21416]
[1730757573096,4.47918,2373.4,2372.8,9.92852034]
[1730757573295,0.2658,2373.4,2372.9,4.21423]
[1730757573495,4.47926,2373.4,2372.8,9.92852034]
[1730757573696,4.21382,2373.2,2372.6,5.68596303]
[1730757574122,4.21365,2373.3,2372.6,5.68596303]
[1730757574123,4.21371,2373.3,2372.7,1.14001734]
[1730757574295,4.47948,2373.3,2372.7,5.35453734]
[1730757574502,4.47948,2373.3,2372.7,5.35461734]
[1730757574701,4.47948,2373.3,2372.2,5.0144]
[1730757574702,4.21445,2372.8,2372.2,5.0144]
[1730757574898,0.2658,2372.7,2372.2,4.2154]
[1730757575128,0.2658,2373.0,2372.4,4.21508]
[1730757575434,4.47991,2373.0,2372.5,4.21495]
[1730757575834,4.47991,2373.0,2372.2,9.13053034]
[1730757575835,4.21427,2372.9,2372.2,9.13053034]
[1730757576037,0.2658,2373.0,2372.3,0.91305303]
[1730757576247,4.21425,2372.9,2372.3,4.21531]
[1730757576450,8.42863,2372.9,2372.3,4.21531]
[1730757576620,4.21456,2372.8,2372.2,4.21545]
[1730757576810,4.21456,2372.8,2372.2,4.21538]
[1730757577113,4.21442,2372.9,2372.3,4.21531]
[1730757577313,4.21442,2372.9,2372.4,4.21511]
[1730757577505,4.47995,2373.0,2372.4,4.21511]
[1730757577719,8.69418,2373.0,2372.4,4.21511]
[1730757578351,4.21426,2372.9,2372.4,4.21511]
[1730757578555,4.47995,2373.0,2372.2,4.21533]
[1730757578843,0.2658,2373.0,2372.4,4.2151]
[1730757579046,0.2658,2373.0,2372.6,4.21474]
[1730757579408,0.2658,2373.3,2372.8,4.21441]
[1730757579614,0.2658,2373.3,2372.8,8.42873]
[1730757579931,4.22268,2373.8,2373.2,4.21362]
[1730757579932,4.21278,2373.8,2373.2,4.21362]
[1730757580136,0.2658,2373.7,2373.2,4.21362]
[1730757580325,4.47872,2373.7,2373.2,4.21362]
[1730757580529,4.21302,2373.6,2373.1,4.21389]
[1730757581471,4.21302,2373.6,2373.0,8.42786]
[1730757581972,0.2658,2373.7,2373.2,4.21361]
[1730757582177,4.47872,2373.7,2373.2,4.21361]
[1730757582331,4.47872,2373.7,2373.1,4.2138]
[1730757582534,3.0,2374.0,2373.1,4.2138]
[1730757582535,8.42487,2374.0,2373.4,4.21322]
[1730757582792,4.21269,2373.8,2373.3,4.21353]
[1730757583063,4.21297,2373.7,2373.1,4.21377]
[1730757583231,4.21297,2373.7,2373.2,0.52223462]
[1730757583428,0.2658,2373.4,2372.6,0.7733]
[1730757583697,0.01,2374.2,2373.1,4.21375]
[1730757583698,4.47864,2373.7,2373.1,4.21375]
[1730757583866,4.47864,2373.7,2373.0,4.21396]
[1730757584172,4.47864,2373.7,2373.2,4.21371]
[1730757584357,4.47864,2373.7,2373.0,4.21396]
[1730757584546,4.47864,2373.7,2373.0,4.635326]
[1730757584743,4.21307,2373.6,2373.1,4.2138]
[1730757584963,4.47864,2373.7,2373.2,4.21371]
[1730757585663,4.47864,2373.7,2373.0,4.635326]
[1730757585664,4.21302,2373.6,2373.0,4.635326]
[1730757585865,4.21302,2373.6,2373.1,4.21387]
[1730757586181,4.47864,2373.7,2373.1,5.0987896]
[1730757586382,4.21303,2373.6,2373.1,5.0987896]
[1730757586858,4.21303,2373.6,2373.1,0.8849196]
[1730757587032,4.21303,2373.6,2373.0,8.849306]
[1730757587237,4.21322,2373.5,2373.0,4.635326]
[1730757587482,4.47864,2373.7,2373.0,4.21393]
[1730757587483,4.21307,2373.6,2373.0,4.21393]
[1730757587848,4.21307,2373.6,2373.1,4.21381]
[1730757588053,0.2658,2373.7,2373.3,4.21342]
[1730757588785,0.2658,2373.7,2373.1,4.21378]
[1730757588786,4.47865,2373.7,2373.2,4.21371]
[1730757589189,4.47865,2373.7,2373.1,5.00468]
[1730757589190,4.21285,2373.7,2373.3,4.21353]
[1730757589394,8.42518,2373.9,2373.3,4.21353]
[1730757589562,4.21255,2373.9,2373.3,5.135271]
[1730757589885,4.21269,2373.8,2373.3,5.135271]
[1730757590090,4.21255,2373.9,2373.3,5.135241]
[1730757590310,4.21255,2373.9,2373.4,4.21326]
[1730757590596,0.2658,2374.0,2373.4,4.21326]
[1730757590597,4.4781,2374.0,2373.5,4.21308]
[1730757591357,4.21321,2373.5,2372.8,0.7961]
[1730757591670,0.2658,2373.6,2372.8,5.0104]
[1730757591867,4.21347,2373.4,2372.9,4.21423]
[1730757592069,0.2658,2373.6,2372.8,5.0104]
[1730757592070,0.2658,2373.6,2372.8,0.7961]
[1730757592271,4.21366,2373.3,2372.7,4.21448]
[1730757592583,4.21374,2373.2,2372.8,0.842912]
[1730757592776,4.21374,2373.2,2372.7,4.21456]
[1730757593560,8.42763,2373.2,2372.6,8.4293]
[1730757593759,4.21374,2373.2,2372.7,4.21457]
[1730757594090,8.42756,2373.2,2372.7,4.21457]
[1730757594292,4.21374,2373.2,2372.7,4.21457]
[1730757594492,4.21374,2373.2,2372.7,5.139741]
[1730757596222,4.21389,2373.1,2372.6,8.42931]
[1730757596404,4.21374,2373.2,2372.6,4.21464]
[1730757596622,4.21374,2373.2,2372.7,4.21451]
[1730757596924,4.21374,2373.2,2372.5,0.8225]
[1730757596925,0.2658,2373.1,2372.5,0.8225]
[1730757597074,4.4797,2373.1,2372.6,4.21469]
[1730757597280,4.21418,2373.0,2372.5,5.03744]
[1730757597480,4.21418,2373.0,2372.4,4.21497]
[1730757597481,4.21435,2372.9,2372.4,4.21497]
[1730757597719,4.21435,2372.9,2372.4,9.353925]
[1730757597915,4.21435,2372.9,2372.4,5.138875]
[1730757598524,4.21412,2373.0,2372.5,4.21482]
[1730757598733,4.21412,2373.0,2372.5,4.21496]
[1730757599206,8.4283,2373.0,2372.5,4.21496]
[1730757599622,4.21412,2373.0,2372.4,5.138875]
[1730757600218,4.21454,2372.8,2372.4,0.923905]
[1730757600529,0.2658,2373.1,2371.6,4.97365]
[1730757600530,4.21567,2372.1,2371.6,4.97365]
[1730757600818,7.21514,2372.4,2371.0,0.7572]
[1730757600994,4.21658,2371.6,2371.1,1.17324585]
[1730757601193,4.21658,2371.6,2371.1,5.39069585]
[1730757601527,4.21727,2371.2,2371.1,1.17324585]
[1730757601696,4.21727,2371.2,2370.9,1.31703103]
[1730757601880,4.21638,2371.7,2371.2,4.21726]
[1730757602224,4.21638,2371.8,2371.0,0.785]
[1730757602520,4.21616,2371.9,2371.3,8.43391]
[1730757602680,4.21648,2371.7,2371.3,0.843391]
[1730757602880,4.21648,2371.7,2371.0,0.785]
[1730757603134,4.21719,2371.3,2371.0,0.785]
[1730757603424,0.0658,2371.2,2370.8,4.21796]
[1730757603607,4.28254,2371.5,2371.0,4.21758]
[1730757603777,4.28254,2371.5,2371.0,4.21757]
[1730757603984,4.21674,2371.5,2371.1,0.924942]
[1730757604191,0.0658,2371.8,2371.1,5.142252]
[1730757604391,4.21666,2371.6,2371.1,5.142252]
[1730757604616,8.43336,2371.6,2371.1,5.142382]
[1730757604801,4.21656,2371.6,2371.1,0.924942]
[1730757605004,0.0758,2371.8,2370.5,4.21836]
[1730757605316,4.21799,2370.8,2370.5,0.7669]
[1730757605823,4.21764,2371.0,2370.5,0.7669]
[1730757606033,4.21764,2371.0,2370.3,0.0581425]
[1730757606034,0.0658,2371.2,2370.3,0.0581425]
[1730757606184,4.28428,2370.6,2370.3,0.0581425]
[1730757606381,7.21869,2370.4,2370.3,0.0581425]
[1730757606991,12.75970034,2370.4,2370.3,2.5e-06]
[1730757607321,7.84449,2370.4,2370.3,2.5e-06]
[1730757607484,7.28449,2370.4,2370.3,2.5e-06]
[1730757607824,4.21969,2369.9,2369.6,1.56545331]
[1730757608182,4.21986,2369.8,2369.6,1.56545331]
[1730757608386,4.21969,2369.9,2369.6,1.32885731]
[1730757608686,4.21887,2370.3,2369.6,1.32885731]
[1730757608687,4.21994,2369.7,2369.6,1.32885731]
[1730757608928,4.21994,2369.7,2369.2,2.64306121]
[1730757609227,4.21994,2369.7,2369.1,4.2791325]
[1730757609228,3.0658,2369.7,2369.1,0.0581425]
[1730757609520,4.22062,2369.4,2369.1,0.0581425]
[1730757609718,8.44126,2369.4,2369.1,0.0581425]
[1730757609892,4.22062,2369.4,2368.8,8.3046125]
[1730757610094,8.4412,2369.4,2368.8,4.0830825]
[1730757610286,4.22058,2369.4,2368.8,4.0830825]
[1730757611109,4.22058,2369.4,2368.8,8.3045225]
[1730757611296,4.22022,2369.6,2368.8,4.99429475]
[1730757611619,4.22022,2369.6,2368.9,4.30578369]
[1730757611828,4.22078,2369.3,2368.7,5.0292]
[1730757612039,4.22117,2369.1,2368.7,0.8076]
[1730757612189,4.22156,2368.8,2368.3,0.8287]
[1730757612389,4.22156,2368.8,2368.2,4.22249]
[1730757612589,4.22156,2368.8,2368.3,4.22239]
[1730757612829,4.22156,2368.8,2368.2,5.15580225]
[1730757613132,4.22156,2368.8,2368.2,0.93320225]
[1730757613133,4.22181,2368.7,2368.2,0.93320225]
[1730757613427,4.22209,2368.5,2368.0,0.8868425]
[1730757613633,0.0658,2368.6,2368.0,5.1096725]
[1730757613796,4.28782,2368.6,2368.0,5.1096725]
[1730757614135,4.22208,2368.5,2368.0,5.1096725]
[1730757614294,0.0658,2368.6,2368.0,5.1096725]
[1730757614637,4.22257,2368.3,2368.0,0.0581425]
[1730757614989,4.28781,2368.6,2368.0,0.0581425]
[1730757615318,0.0658,2368.6,2368.0,0.0581425]
[1730757615631,4.22279,2368.1,2368.0,0.0581425]
[1730757616226,4.22279,2368.1,2367.8,0.76882739]
[1730757616227,7.22315,2367.9,2367.8,0.76882739]
[1730757616538,9.28680049,2367.9,2367.3,4.22418]
[1730757616690,4.22333,2367.8,2367.3,4.22418]
[1730757617034,0.0658,2368.0,2367.4,4.22386]
[1730757617242,0.0658,2368.0,2367.5,4.22374]
[1730757618243,2.64561942,2368.0,2367.5,4.22374]
[1730757618389,0.69576082,2367.9,2367.5,4.22374]
[1730757618591,0.84041049,2368.0,2367.7,4.2234]
[1730757618797,0.84041049,2368.2,2367.8,4.22332]
[1730757619038,2.57995065,2368.2,2367.7,0.8]
[1730757619241,0.84041049,2368.4,2368.0,4.22297]
[1730757619538,0.0658,2368.7,2368.2,4.22261]
[1730757619725,4.22148,2368.9,2368.3,4.22241]
[1730757619920,4.22148,2368.9,2368.3,4.22243]
[1730757620138,4.22148,2368.9,2367.9,4.91521034]
[1730757620139,0.0658,2369.0,2367.9,9.13833034]
[1730757620337,0.0658,2369.0,2368.0,5.64350923]
[1730757620652,0.0658,2369.0,2368.3,4.2223]
[1730757620949,4.2215,2368.9,2368.3,4.2223]
[1730757621308,4.2215,2368.9,2368.3,4.22241]
[1730757621505,4.22168,2368.8,2368.2,4.22261]
[1730757621709,4.22253,2368.3,2367.7,0.8]
[1730757622005,4.22253,2368.3,2367.4,4.22395]
[1730757622006,0.0658,2368.0,2367.4,4.22402]
[1730757622204,0.0658,2368.0,2367.4,0.844829]
[1730757622520,0.0658,2368.0,2367.6,4.22357]
[1730757622712,0.0658,2368.3,2367.9,4.22305]
[1730757622916,4.23144,2368.9,2368.2,4.2226]
[1730757622917,3.0658,2368.6,2368.2,4.2226]
[1730757623150,0.0658,2368.6,2368.3,4.22226]
[1730757623317,0.0658,2369.0,2368.4,4.22222]
[1730757623660,4.28708,2369.0,2368.4,5.13596303]
[1730757623835,0.0658,2369.0,2368.5,4.22207]
[1730757624037,0.0658,2369.3,2368.4,0.91374303]
[1730757624238,4.22041,2369.5,2368.4,0.91374303]
[1730757624239,8.44081,2369.5,2368.9,4.22136]
[1730757624433,1.755916,2369.6,2368.7,4.22172]
[1730757624741,4.2206,2369.4,2368.8,4.22152]
[1730757624924,4.22067,2369.3,2368.8,4.22152]
[1730757625140,4.22059,2369.4,2368.7,4.2216]
[1730757625313,4.28603,2369.6,2368.7,0.99409103]
[1730757625509,0.01,2370.0,2368.7,0.99409103]
[1730757625510,0.0658,2369.9,2368.9,4.22136]
[1730757625715,0.0658,2369.9,2369.4,4.22035]
[1730757626007,0.0658,2369.9,2369.2,4.22072]
[1730757626453,4.21928,2370.1,2369.5,8.44037]
[1730757626614,4.21928,2370.1,2369.5,4.22018]
[1730757626812,4.28495,2370.2,2369.5,4.22018]
[1730757627014,4.21943,2370.0,2369.5,4.22018]
[1730757627221,4.21943,2370.0,2369.4,4.22044]
[1730757627552,4.21943,2370.0,2369.5,4.22015]
[1730757627906,4.21943,2370.0,2369.4,4.642484]
[1730757628112,4.21943,2370.0,2369.5,4.22029]
[1730757628852,4.21971,2369.9,2369.4,0.422044]
[1730757629073,4.21971,2369.9,2369.2,8.44142]
[1730757629363,4.22077,2369.3,2368.7,6.04021103]
[1730757629527,4.22076,2369.3,2368.7,5.04612]
[1730757629732,8.44152,2369.3,2368.7,5.04612]
[1730757629914,4.22076,2369.3,2368.7,0.8244]
[1730757630246,4.22076,2369.3,2368.8,4.22154]
[1730757630456,4.22076,2369.3,2368.7,6.04225803]
[1730757630753,8.44154,2369.3,2368.7,6.04225803]
[1730757630912,8.44154,2369.3,2368.8,4.22153]
[1730757630913,4.22076,2369.3,2368.8,4.22153]
[1730757631434,8.44156,2369.3,2368.7,5.04611]
[1730757631641,4.22076,2369.3,2368.7,5.04611]
[1730757631842,4.22076,2369.3,2368.8,4.22153]
[1730757632365,0.0658,2369.6,2368.8,0.08442987]
[1730757632582,4.28542,2369.9,2369.3,4.22052]
[1730757632793,4.28542,2369.9,2369.5,4.22029]
[1730757632794,0.0658,2369.9,2369.5,4.22029]
[1730757632951,4.21936,2370.1,2369.5,4.22029]
[1730757633149,4.21936,2370.1,2369.6,4.22009]
[1730757633484,0.0658,2370.2,2369.4,4.22046]
[1730757633782,4.21931,2370.1,2369.5,4.22027]
[1730757634388,4.21931,2370.1,2369.4,4.22046]
[1730757634592,4.21931,2370.1,2369.5,4.22029]
[1730757634794,4.21931,2370.1,2369.5,4.22028]
[1730757635165,4.21931,2370.1,2369.6,4.22011]
[1730757635488,0.0658,2370.5,2369.7,0.08440015]
[1730757635658,0.0658,2370.5,2369.7,4.21994]
[1730757635858,4.21872,2370.4,2369.8,4.21961]
[1730757636399,4.21908,2370.2,2369.7,4.72587255]
[1730757636599,4.21872,2370.4,2369.7,4.21994]
[1730757636600,4.21896,2370.3,2369.7,4.21994]
[1730757637387,4.21872,2370.4,2369.8,4.21966]
[1730757637782,4.21908,2370.2,2369.6,4.97511]
[1730757638092,4.21902,2370.3,2369.7,4.2199]
[1730757638261,8.43804,2370.3,2369.7,4.2199]
[1730757638468,4.21829,2370.7,2370.1,4.21914]
[1730757638798,4.21841,2370.6,2369.9,4.21945]
[1730757638990,7.28386,2370.8,2370.2,4.2189]
[1730757639198,4.28311,2371.2,2370.5,4.21851]
[1730757639497,4.21745,2371.1,2370.5,8.43693]
[1730757639679,4.21745,2371.1,2370.5,4.21842]
[1730757639988,8.43501,2371.1,2370.5,4.21842]
[1730757640204,4.21745,2371.1,2370.5,4.21842]
[1730757640364,8.435,2371.1,2370.5,4.21842]
[1730757640566,4.21745,2371.1,2370.5,8.43685]
[1730757640763,4.21799,2370.8,2370.3,4.21879]
[1730757641088,4.21777,2371.0,2370.4,4.2186]
[1730757641399,3.0,2371.1,2370.4,4.2186]
[1730757641562,7.21751,2371.1,2370.5,4.21841]
[1730757641904,3.0,2370.8,2369.9,4.21956]
[1730757642107,3.0,2370.8,2370.3,4.21887]
[1730757642108,4.21805,2370.8,2370.3,4.21887]
[1730757642478,4.21805,2370.8,2370.2,4.21895]
[1730757642792,4.21816,2370.7,2370.2,4.21895]
[1730757642996,0.0658,2371.0,2370.4,4.21869]
[1730757643192,4.28359,2371.0,2370.4,4.21859]
[1730757643402,0.0658,2371.0,2370.5,4.21848]
[1730757643566,0.0658,2371.0,2370.5,8.43687]
[1730757643767,0.0658,2371.0,2370.5,4.21839]
[1730757644011,4.28354,2371.0,2370.5,4.21839]
[1730757644377,4.28354,2371.0,2370.3,5.03167]
[1730757644707,0.0658,2371.0,2370.5,4.21847]
[1730757644863,4.28345,2371.0,2370.5,4.21847]
[1730757645063,0.0658,2371.0,2370.6,4.2183]
[1730757645691,7.21736,2371.2,2370.6,4.2183]
[1730757648195,4.21745,2371.1,2370.3,5.03162]
[1730757648411,4.21772,2371.0,2370.4,4.21865]
[1730757650075,3.0,2371.2,2370.7,4.21803]
[1730757650315,4.283,2371.3,2370.5,4.85287285]
[1730757650316,0.0658,2371.3,2370.5,4.85287285]
[1730757650518,0.0581425,2371.5,2371.1,4.21733]
[1730757650873,4.2749025,2371.5,2370.7,5.00214]
[1730757651074,4.2749025,2371.5,2370.4,4.21853]
[1730757651075,4.28333,2371.1,2370.4,4.21853]
[1730757651386,4.28333,2371.1,2370.0,9.91871034]
[1730757651387,0.0658,2371.1,2370.2,4.21893]
[1730757651591,0.0658,2371.1,2369.8,4.21967]
[1730757651592,4.21879,2370.4,2369.8,4.21968]
[1730757651791,3.0,2370.6,2370.1,4.2192]
[1730757651991,3.0,2370.6,2370.0,4.21927]
[1730757651992,4.21854,2370.5,2370.0,4.21927]
[1730757652318,4.21854,2370.5,2369.9,4.21958]
[1730757652617,7.21836,2370.6,2370.1,4.21912]
[1730757652773,3.0,2370.6,2370.1,8.43825]
[1730757653090,4.21825,2370.7,2370.1,4.21912]
[1730757653288,4.2839,2370.8,2370.1,0.421912]
[1730757653289,0.0658,2370.8,2370.1,0.421912]
[1730757653492,7.21773,2371.0,2370.4,4.2186]
[1730757653788,0.84041049,2371.4,2370.4,4.2186]
[1730757653789,4.21712,2371.3,2370.8,4.21787]
[1730757654112,0.0658,2371.4,2371.0,4.2176]
[1730757654284,0.0658,2371.4,2370.9,4.2178]
[1730757654615,0.0581425,2371.5,2371.1,4.21736]
[1730757654821,0.0581425,2371.5,2371.1,0.084346]
[1730757655166,0.0581425,2371.5,2371.4,4.21691]
[1730757655915,0.0581425,2371.5,2371.4,4.97091]
[1730757656123,0.0581425,2371.5,2371.4,5.97403936]
[1730757656339,0.0581425,2371.5,2371.4,9.52403936]
[1730757656481,0.0581425,2371.5,2371.4,9.439709]
[1730757657692,0.0581425,2372.7,2371.6,4.22656]
[1730757657897,0.0581425,2372.7,2372.2,4.21533]
[1730757658123,0.0581425,2372.7,2372.4,4.21511]
[1730757658714,0.0581425,2372.7,2372.5,4.21492]
[1730757658925,0.0581425,2372.7,2372.6,4.21478]
[1730757659547,0.0581425,2372.7,2372.6,5.59618]
[1730757659904,0.0581425,2372.7,2372.6,8.6804591]
[1730757660099,0.0581425,2372.7,2372.6,9.89671991]
[1730757660304,0.0581425,2373.8,2373.4,4.21329]
[1730757660553,0.0581425,2373.8,2373.7,4.21283]
[1730757661999,0.0581425,2373.8,2373.6,4.21299]
[1730757662212,0.0581425,2373.8,2373.5,4.21314]
[1730757662413,0.0581425,2373.8,2373.6,4.21299]
[1730757662632,0.0581425,2373.8,2373.7,4.21283]
[1730757663118,0.0581425,2373.8,2373.7,8.51953]
[1730757663450,0.0581425,2375.0,2374.8,4.21071]
[1730757663748,0.0581425,2375.0,2374.7,4.21097]
[1730757664039,0.0581425,2375.0,2374.9,4.2107]
[1730757664365,0.0581425,2375.0,2374.9,4.7607]
[1730757664564,0.0581425,2375.0,2374.9,4.2107]
[1730757664720,0.0581425,2375.0,2374.9,4.29490621]
[1730757665041,0.0581425,2375.0,2374.9,4.2107]
[1730757665242,0.0581425,2375.0,2374.9,4.7607]
[1730757665455,0.0581425,2375.0,2374.9,8.68705973]
[1730757665623,0.0581425,2376.2,2375.8,4.20896]
[1730757665940,0.0581425,2376.2,2375.2,5.02977]
[1730757666127,0.2402,2375.9,2375.4,4.20971]
[1730757666330,0.0581425,2376.2,2375.5,4.20949]
[1730757666547,4.20895,2375.9,2375.3,4.20989]
[1730757666749,4.20895,2375.9,2375.1,8.42051]
[1730757667064,4.20895,2375.9,2374.9,6.40805653]
[1730757667065,4.20893,2375.9,2375.0,0.55]
[1730757667359,0.020397,2376.3,2375.2,0.55]
[1730757667659,0.020397,2376.3,2376.1,4.20856]
[1730757668369,0.020397,2376.3,2375.7,4.20916]
[1730757668562,0.020397,2376.3,2376.0,4.20873]
[1730757668750,0.020397,2376.3,2376.2,4.20839]
[1730757669135,0.020397,2376.3,2376.1,4.20856]
[1730757669336,0.020397,2376.3,2376.1,4.20845]
[1730757669641,0.020397,2376.3,2376.2,4.29254904]
[1730757669841,0.020397,2376.3,2376.2,4.20839]
[1730757670238,0.020397,2376.3,2376.1,4.20845]
[1730757670562,4.44861,2376.2,2375.3,0.805]
[1730757670766,4.20877,2376.0,2375.4,4.20976]
[1730757670923,4.2092,2375.8,2375.1,4.21022]
[1730757671264,4.20992,2375.4,2374.7,4.27412822]
[1730757671466,4.20946,2375.6,2374.7,0.06317822]
[1730757671774,3.2402,2375.8,2374.8,4.21074]
[1730757672067,4.21053,2375.0,2374.4,4.21156]
[1730757672280,4.21038,2375.1,2374.5,0.08421898]
[1730757672565,3.2402,2375.3,2374.0,0.7648]
[1730757672866,4.45034,2375.3,2374.6,4.21108]
[1730757673082,4.45033,2375.3,2374.7,4.21103]
[1730757673259,4.45033,2375.3,2374.3,5.60305653]
[1730757673260,0.2402,2375.3,2374.8,4.21075]
[1730757673430,0.2402,2375.6,2375.1,4.2102]
[1730757673630,4.44921,2375.9,2375.4,4.20979]
[1730757673956,0.2402,2375.9,2375.0,4.21042]
[1730757674287,4.20948,2375.6,2375.0,4.21042]
[1730757674652,0.2402,2375.9,2375.3,4.20983]
[1730757674848,4.20941,2375.7,2375.1,4.21025]
[1730757675578,4.44922,2375.9,2375.3,4.20996]
[1730757675755,4.44922,2375.9,2375.2,0.08419159]
[1730757675950,4.44922,2375.9,2375.2,0.08419026]
[1730757676145,4.44922,2375.9,2375.3,4.20998]
[1730757676351,4.20929,2375.7,2375.2,4.29434026]
[1730757676564,4.20911,2375.8,2375.3,4.20998]
[1730757676775,4.44922,2375.9,2375.3,4.20998]
[1730757676998,4.44922,2375.9,2375.1,8.42046]
[1730757677309,4.44922,2375.9,2375.3,4.20988]
[1730757677492,0.2402,2376.2,2375.6,4.20929]
[1730757677665,4.228727,2376.3,2375.7,4.20927]
[1730757677867,0.020397,2376.3,2375.9,4.20892]
[1730757678177,0.020397,2376.3,2376.1,4.20856]
[1730757678805,0.020397,2376.3,2376.2,4.20839]
[1730757678979,0.020397,2376.3,2376.1,4.20841]
[1730757679305,0.020397,2376.3,2376.2,1.41176087]
[1730757679514,0.020397,2376.3,2376.2,1.3276]
[1730757679714,0.020397,2376.3,2376.2,9.18215856]
[1730757679865,0.020397,2376.3,2376.2,9.10800709]
[1730757680069,4.20645,2377.3,2376.8,3.499719]
[1730757680268,4.20619,2377.5,2376.8,3.499719]
[1730757680509,4.20682,2377.1,2376.6,4.20768]
[1730757680670,4.20648,2377.3,2376.7,4.20738]
[1730757680866,4.20674,2377.2,2376.7,4.20738]
[1730757681071,4.20674,2377.2,2376.5,7.75775]
[1730757681371,8.4128,2377.4,2376.7,8.41486]
[1730757681625,4.20604,2377.6,2376.8,0.55]
[1730757681819,4.20604,2377.6,2377.0,4.20693]
[1730757682020,4.20604,2377.6,2377.0,4.20688]
[1730757682323,0.2402,2377.3,2376.2,4.98588]
[1730757682640,4.20797,2376.5,2376.0,4.20874]
[1730757682864,4.44718,2377.0,2376.1,4.20843]
[1730757682865,4.20761,2376.7,2376.1,4.20843]
[1730757683168,4.20789,2376.5,2375.9,9.22854]
[1730757683375,4.20761,2376.7,2376.1,4.20845]
[1730757683688,4.20716,2376.9,2375.9,0.8109]
[1730757683967,4.20777,2376.6,2376.0,4.20872]
[1730757684184,4.20789,2376.5,2375.9,9.22855]
[1730757684466,4.20807,2376.4,2375.7,4.74876495]
[1730757684677,4.44799,2376.6,2375.8,4.20903]
[1730757684832,0.2402,2376.6,2375.7,4.20927]
[1730757685029,4.20839,2376.3,2375.7,4.20927]
[1730757685236,4.20819,2376.4,2375.7,4.20927]
[1730757685437,4.44797,2376.6,2375.8,0.08416796]
[1730757685643,4.20738,2376.8,2376.2,4.20823]
[1730757685885,0.2402,2377.0,2376.0,8.41724]
[1730757686090,4.20733,2376.8,2376.1,4.20846]
[1730757686242,4.20733,2376.8,2376.2,4.20838]
[1730757686442,4.20716,2376.9,2376.4,4.20799]
[1730757686639,0.2402,2377.5,2376.8,4.20726]
[1730757686883,0.2402,2377.5,2376.7,4.20746]
[1730757686884,4.20645,2377.3,2376.7,4.20746]
[1730757687084,4.20645,2377.3,2376.8,4.20732]
[1730757687445,4.20645,2377.3,2376.8,4.20723]
[1730757687664,4.20628,2377.4,2376.9,4.20714]
[1730757688276,4.20646,2377.3,2376.8,4.20723]
[1730757688491,4.44642,2377.5,2376.8,4.20723]
[1730757688780,4.20627,2377.4,2376.8,8.965413]
[1730757689077,8.65261,2377.5,2376.9,4.20711]
[1730757689283,4.20629,2377.4,2376.8,4.758183]
[1730757689579,8.41203,2377.6,2377.0,4.20697]
[1730757689784,4.20601,2377.6,2377.0,4.20687]
[1730757689952,4.44588,2377.8,2377.2,8.41302]
[1730757690154,0.2402,2377.8,2377.3,0.08412125]
[1730757690477,4.20431,2378.6,2376.8,0.01]
[1730757690478,4.20637,2377.4,2376.8,0.01]
[1730757690648,8.41275,2377.4,2376.8,4.21731]
[1730757690844,5.84325653,2378.5,2377.2,4.20646]
[1730757691045,5.84325653,2378.5,2377.1,4.21677]
[1730757691046,4.2045,2378.4,2377.1,4.21677]
[1730757691277,4.2045,2378.4,2377.1,4.21667]
[1730757691278,4.20583,2377.7,2377.1,4.21667]
[1730757691584,4.20558,2377.8,2377.3,0.01]
[1730757691767,4.20595,2377.6,2377.3,0.01]
[1730757692076,4.20558,2377.8,2377.3,0.59328635]
[1730757692278,4.20558,2377.8,2377.3,0.509168]
[1730757692483,4.20579,2377.7,2377.3,0.509168]
[1730757692659,4.20558,2377.8,2377.3,0.509168]
[1730757692854,4.20531,2378.0,2377.4,0.08411667]
[1730757693068,4.20514,2378.1,2377.5,4.206]
[1730757693274,4.20507,2378.1,2377.7,0.01]
[1730757693647,4.20634,2377.4,2377.1,0.01]
[1730757693846,8.41231,2377.5,2377.1,0.01]
[1730757694040,4.2063,2377.4,2377.1,0.01]
[1730757694689,4.21488,2378.2,2376.9,0.548365]
[1730757694690,4.20676,2377.2,2376.9,0.548365]
[1730757694989,4.20676,2377.2,2376.2,0.420838]
[1730757694990,0.2233,2376.7,2375.6,4.20933]
[1730757695198,4.43094,2376.7,2376.1,4.20847]
[1730757695400,4.20733,2376.8,2376.2,4.20828]
[1730757695554,4.20782,2376.6,2376.0,8.41726]
[1730757695755,0.2233,2377.1,2375.7,0.420933]
[1730757695949,4.20733,2376.9,2376.2,4.20839]
[1730757696157,8.41492,2376.8,2376.2,4.20836]
[1730757696389,4.20743,2376.8,2376.2,4.20836]
[1730757696607,4.2071,2377.0,2376.5,4.20777]
[1730757696785,4.2071,2377.0,2376.4,4.20801]
[1730757697086,4.20699,2377.0,2376.5,0.420801]
[1730757697289,4.20724,2376.9,2376.4,4.20793]